[Event "Prague Festival-Challengers 2022"]
[Site "Prague"]
[Date "2022.06.10"]
[Round "3.2"]
[White "Michalik, Peter"]
[Black "Stocek, Jiri"]
[Result "1/2-1/2"]
[ECO "B92"]
[WhiteElo "2579"]
[BlackElo "2533"]
[Annotator "TA"]
[PlyCount "85"]
[EventDate "2022.06.07"]
[EventType "tourn"]
[EventCountry "CZE"]
[SourceTitle "playchess.com"]
[Source "ChessBase"]
[SourceQuality "1"]
[TimeControl "40/5400+30:1800+30"]

{[%evp 15,85,-2,0,0,7,0,20,25,20,25,17,0,16,0,49,44,57,49,55,50,66,50,69,57,81,57,85,83,58,52,70,56,129,144,129,79,83,52,224,218,219,104,437,420,449,430,679,601,679,530,495,181,237,97,97,97,97,97,97,95,71,39,39,29,37,13,28,0,0,0,0,0]} 1. e4 {[%emt 0:00:10]} c5 {[%emt 0:00:50]} 2. Nf3 {[%emt 0:00:05]} d6 {[%emt 0:00:49]} 3. d4 {[%emt 0:00:38]} cxd4 {[%emt 0:00:18]} 4. Nxd4 {[%emt 0:00:04]} Nf6 {[%emt 0:00:32]} 5. Nc3 {[%emt 0:00:11]} a6 {[%emt 0:01:02]} 6. Be2 {[%emt 0:01:26]} e5 {[%emt 0:01:47]} 7. Nf3 {[%emt 0:00:45]} Be7 {[%emt 0:02:21]} 8. Bg5 {[%emt 0:00:08]} Nbd7 {[%emt 0:01:47]} 9. a4 $1 {[%emt 0:02:20] 9.a4 scores better than 9.0-0. B92: Sicilian Najdorf: 6 Be2.} h6 {[%emt 0:01:27]} 10. Be3 {[%emt 0:00:42]} Ng4 {[%emt 0:02:16]} 11. Bc1 {[%emt 0:02:51]} Ngf6 {[%emt 0:01:43]} 12. Nd2 {[%emt 0:00:17]} Nc5 {[%emt 0:00:58] [#]} 13. Bf3 $146 {[%emt 0:04:44]} ({Predecessor:} 13. O-O Qc7 14. a5 Be6 15. Re1 O-O 16. Bf3 Rad8 17. Nd5 Nxd5 18. exd5 Bf5 19. b4 {½-½ (80) So,W (2778)-Vachier Lagrave,M (2789) Stavanger 2018}) 13... Be6 {[%emt 0:17:40]} 14. O-O {[%emt 0:14:49]} Rc8 {[%emt 0:17:52]} (14... O-O $11) 15. Re1 $14 {[%emt 0:00:22]} g5 {[%emt 0:01:14]} 16. g3 {[%emt 0:06:51]} g4 {[%emt 0:07:29]} 17. Bg2 {[%emt 0:00:27]} h5 {[%emt 0:00:23]} 18. Nf1 {[%emt 0:00:04]} h4 {[%emt 0:07:28]} 19. Ne3 {[%emt 0:01:11]} hxg3 {[%emt 0:04:05]} 20. hxg3 {[%emt 0:00:09]} Rh5 {[%emt 0:07:05]} 21. a5 {[%emt 0:01:36]} Bf8 {[%emt 0:06:32]} 22. Ra3 {[%emt 0:07:54]} Ncd7 {[%emt 0:03:46]} 23. b4 {[%emt 0:07:43]} b5 {[%emt 0:02:42] [#]} (23... Qc7 $14) 24. axb6 $1 $16 {[%emt 0:02:05]} Qxb6 {[%emt 0:01:01]} 25. Bd2 {[%emt 0:00:15]} (25. Ned5 $142 Bxd5 26. Nxd5 Nxd5 27. exd5) 25... Qxb4 {[%emt 0:01:38]} 26. Rxa6 {[%emt 0:00:39]} Qd4 {[%emt 0:01:03]} ({Black should try} 26... Rxc3 $14 27. Qa1 Nxe4 28. Bxc3 (28. Ra4 $2 Qxa4 29. Qxa4 Nxd2 $19) 28... Nxc3) 27. Nb5 $18 {[%emt 0:10:50]} Qc5 {[%emt 0:00:39]} 28. c4 {[%emt 0:03:05]} (28. Na7 $18 Rb8 29. Qa1 (29. Nc6 Rc8 $16)) 28... Nb8 $2 {[%emt 0:00:54][%mdl 8192]} (28... Bxc4 $16 {is more resistant.} 29. Nxd6+ Bxd6 30. Nxc4 Qxc4 31. Rxd6 Ra8) 29. Ra4 {[%emt 0:01:51]} Qb6 {[%emt 0:03:41]} 30. Qa1 {[%emt 0:04:24] [#] Hoping for Rb1.} Nbd7 {[%emt 0:02:03]} (30... Qd8 $142 31. Na7 Rc5) 31. Ra6 {[%emt 0:05:40]} Qb8 {[%emt 0:01:14]} 32. Nf5 {[%emt 0:02:04]} Nxe4 {[%emt 0:00:59]} 33. Nfxd6+ $2 {[%emt 0:04:39]} (33. Bxe4 Bxf5 34. Bxf5 (34. Ra8 Bxe4 35. Rxe4 Qb7 $17) 34... Rxf5 35. Rb1) 33... Nxd6 {[%emt 0:00:24]} 34. Ra8 {[%emt 0:00:03]} (34. Nxd6+ $18 {and the rest is easy.} Bxd6 35. Rb1) 34... Qxa8 $16 {[%emt 0:00:45]} 35. Nxd6+ {[%emt 0:01:02]} Bxd6 {[%emt 0:00:06]} 36. Bxa8 {[%emt 0:00:02]} Rxc4 {[%emt 0:00:38]} 37. Qa6 {[%emt 0:01:14]} Ke7 {[%emt 0:00:31]} 38. Be3 {[%emt 0:01:12] Strongly threatening Rd1.} Bc5 $1 {[%emt 0:00:25]} 39. Bxc5+ {[%emt 0:01:02]} Nxc5 {[%emt 0:00:18]} 40. Qa5 {[%emt 0:00:00]} Kf6 {[%emt 0:00:00]} 41. Qa3 {[%emt 0:14:07]} Ra4 {[%emt 0:11:21]} 42. Qxc5 {[%emt 0:00:07]} Rxa8 {[%emt 0:00:03]} 43. Qc6 {[%emt 0:05:58] Black escapes into a draw.  Weighted Error Value: White=0.32/Black=0.45} 1/2-1/2

[Event "Prague Festival-Challengers 2022"]
[Site "Prague"]
[Date "2022.06.10"]
[Round "3.3"]
[White "Krzyzanowski, Marcin"]
[Black "Abdusattorov, Nodirbek"]
[Result "1/2-1/2"]
[ECO "E67"]
[WhiteElo "2535"]
[BlackElo "2661"]
[Annotator "TA"]
[PlyCount "150"]
[EventDate "2022.06.07"]
[EventType "tourn"]
[EventCountry "CZE"]
[SourceTitle "playchess.com"]
[Source "ChessBase"]
[SourceQuality "1"]
[TimeControl "40/5400+30:1800+30"]

{[%evp 25,150,16,38,5,23,14,26,-22,52,44,59,59,53,52,92,80,106,106,114,114,108,103,104,93,100,110,146,93,107,66,87,82,77,66,164,100,97,106,106,106,106,106,106,106,106,106,118,106,106,106,106,106,107,85,85,85,85,85,85,85,85,85,85,70,70,70,70,70,70,70,101,93,93,93,101,93,101,93,101,101,101,70,70,0,101,101,101,101,101,101,101,70,93,70,70,70,70,70,70,70,93,70,101,93,93,93,93,19,19,19,19,19,33,33,33,33,33,33,38,33,39,25,25,25,33,33,34]} 1. Nf3 {[%emt 0:00:03]} Nf6 {[%emt 0:00:24]} 2. c4 {[%emt 0:00:11]} d6 {[%emt 0:00:07]} 3. d4 {[%emt 0:00:27]} g6 {[%emt 0:00:08]} 4. g3 {[%emt 0:00:07]} Bg7 {[%emt 0:01:05]} 5. Bg2 {[%emt 0:00:05]} O-O {[%emt 0:01:17]} 6. O-O {[%emt 0:00:38]} Bf5 {[%emt 0:01:36]} 7. Nh4 {[%emt 0:03:08]} Bc8 {[%emt 0:01:49]} 8. Nf3 {[%emt 0:00:46]} Nbd7 {[%emt 0:00:05]} 9. Nc3 {[%emt 0:00:05]} e5 {[%emt 0:00:08]} 10. Qc2 {[%emt 0:04:05]} Re8 {[%emt 0:00:13]} 11. dxe5 {[%emt 0:01:20]} dxe5 {[%emt 0:00:31]} 12. Rd1 {[%emt 0:01:18]} c6 {[%emt 0:00:14]} 13. e4 {[%emt 0:04:37]} Qe7 {[%emt 0:00:34]} 14. b3 {[%emt 0:01:35] E67: King's Indian: Fianchetto: 6...Nbd7.} h6 {[%emt 0:05:05]} 15. h3 {[%emt 0:04:58]} Nh7 {[%emt 0:03:26] [#]} 16. Na4 $146 {[%emt 0:10:31]} (16. Rd3 $142) ({Predecessor:} 16. a4 Nc5 17. Ba3 a5 18. Rd2 Bf8 19. Re1 Qf6 20. Re3 h5 21. h4 b6 22. Nh2 Bh6 23. Rf3 Qe7 24. Rd1 {0-1 (46) Kaabi,M (2362)-Yurtaev,L (2539) Abu Dhabi 1999}) 16... b6 {[%emt 0:06:44]} ({Black should play} 16... Ndf8 $11) 17. Be3 $14 {[%emt 0:06:28]} Ndf8 {[%emt 0:04:07]} 18. c5 {[%emt 0:07:35]} b5 {[%emt 0:00:07]} 19. Nb2 {[%emt 0:00:04]} Ne6 {[%emt 0:03:51]} 20. a4 $36 {[%emt 0:03:58][%mdl 2048] White is on the roll.} bxa4 {[%emt 0:10:35]} 21. Rxa4 {[%emt 0:01:47]} (21. Nxa4 Nhg5 $14) 21... Nhg5 {[%emt 0:00:08]} 22. Nxg5 {[%emt 0:03:02]} hxg5 {[%emt 0:00:24]} 23. b4 {[%emt 0:06:53]} Nd4 {[%emt 0:07:56]} 24. Bxd4 {[%emt 0:01:15]} exd4 {[%emt 0:00:02]} 25. Nc4 {[%emt 0:04:53][%cal Oe4e5]} Rd8 {[%emt 0:04:00]} 26. Qd3 {[%emt 0:03:38]} (26. e5 $142) 26... Be6 $16 {[%emt 0:01:50]} 27. Ra6 {[%emt 0:04:06]} Qb7 {[%emt 0:28:57][%csl LRa6,LRb4]} 28. Na5 $1 {[%emt 0:02:03][%csl LRb7,LRc6]} Qxb4 {[%emt 0:00:02]} 29. Nxc6 {[%emt 0:00:29]} Qb3 {[%emt 0:02:55]} 30. Nxd8 {[%emt 0:11:42]} (30. Qxb3 $18 Bxb3 31. Rb1 (31. Nxd8 Bxd1 32. Nc6 Be2 $11)) 30... Qxd3 {[%emt 0:00:02]} 31. Rxd3 {[%emt 0:00:07]} Bc4 {[%emt 0:00:03] [#]} 32. Rd6 {[%emt 0:03:09]} Bxd3 {[%emt 0:00:31] This bishop pair is nice.} 33. e5 $1 {[%emt 0:00:07]} Rc8 {[%emt 0:01:51] [#]} 34. e6 {[%emt 0:03:15] 0x0.00207b14806adp-1022s more active pieces.} fxe6 {[%emt 0:02:28]} 35. Nxe6 {[%emt 0:00:02] Strongly threatening Rd7.} Bf5 {[%emt 0:05:33]} 36. Nxg7 {[%emt 0:04:47]} ({But not} 36. Nxd4 Bxd4 37. Rxd4 Rxc5 $11) ({Don't play} 36. Nxg5 Bf8 37. Rxd4 (37. Bd5+ Kg7 $14) 37... Bxc5 $14) 36... Kxg7 {[%emt 0:00:13][%mdl 4096] Endgame KRB-KRB} 37. c6 {[%emt 0:00:45]} ({Much weaker is} 37. Rxd4 $6 Rxc5 38. g4 Bc8 $11) 37... a5 {[%emt 0:02:29]} 38. Rxd4 {[%emt 0:00:59]} Rc7 {[%emt 0:00:01]} 39. Rd5 {[%emt 0:02:40] And now g4 would win.} Rxc6 {[%emt 0:00:18]} 40. g4 {[%emt 0:00:00]} Be6 {[%emt 0:00:00]} 41. Rxa5 {[%emt 0:01:42]} Rc1+ {[%emt 0:01:37]} 42. Kh2 {[%emt 0:00:08]} Rc2 {[%emt 0:00:26]} 43. Kg3 {[%emt 0:01:46]} Rc3+ {[%emt 0:00:24]} 44. f3 {[%emt 0:03:24]} Kf6 {[%emt 0:01:15]} 45. Bf1 {[%emt 0:02:19]} Bf7 {[%emt 0:00:23]} 46. Ra6+ {[%emt 0:00:16]} Kg7 {[%emt 0:00:10]} 47. Rd6 {[%emt 0:00:10]} Rc5 {[%emt 0:00:58]} 48. Rd7 {[%emt 0:00:34]} Kf6 {[%emt 0:00:27]} 49. Bd3 {[%emt 0:00:12]} Ra5 {[%emt 0:00:35]} 50. Be4 {[%emt 0:00:27]} Rc5 {[%emt 0:00:09]} 51. Ra7 {[%emt 0:01:10]} Rb5 {[%emt 0:00:23]} 52. Ra6+ {[%emt 0:00:16]} Kg7 {[%emt 0:00:11]} 53. Kf2 {[%emt 0:04:00]} Rb2+ {[%emt 0:00:20]} 54. Kg3 {[%emt 0:02:53]} Rb5 $1 {[%emt 0:00:06]} 55. Rd6 {[%emt 0:00:08]} Ra5 {[%emt 0:00:15]} 56. Rb6 {[%emt 0:00:08]} Rc5 {[%emt 0:00:38]} 57. Kf2 {[%emt 0:00:08]} Ra5 {[%emt 0:01:16]} 58. Ke3 {[%emt 0:00:50]} Rc5 {[%emt 0:00:24]} 59. Kd4 {[%emt 0:01:21]} Ra5 {[%emt 0:00:13]} 60. Rb7 {[%emt 0:01:27]} Kf6 {[%emt 0:00:15]} 61. Bc2 {[%emt 0:01:30] Prevents Ra4+.} Rd5+ {[%emt 0:00:17]} 62. Ke3 {[%emt 0:00:25][%cal Ob7f7] Threatens to win with Rxf7+!} Re5+ {[%emt 0:00:20]} 63. Kf2 {[%emt 0:02:17]} Rc5 {[%emt 0:00:11]} 64. Be4 {[%emt 0:00:41]} Ra5 {[%emt 0:00:06]} 65. Kg3 {[%emt 0:00:15]} Rc5 {[%emt 0:00:08]} 66. h4 {[%emt 0:00:04]} (66. Rd7 $16) 66... gxh4+ $11 {[%emt 0:00:10]} 67. Kxh4 {[%emt 0:00:03][%cal Og4g5]} g5+ {[%emt 0:00:08]} 68. Kg3 {[%emt 0:00:02]} Ra5 {[%emt 0:00:54]} 69. Rb6+ {[%emt 0:01:07]} Kg7 {[%emt 0:00:13]} 70. Kf2 {[%emt 0:00:13]} Rc5 {[%emt 0:00:45]} 71. Ke3 {[%emt 0:00:09]} Rc3+ {[%emt 0:00:25]} 72. Kd4 {[%emt 0:00:04]} Rc4+ {[%emt 0:00:10]} 73. Ke5 {[%emt 0:00:06]} Rc5+ {[%emt 0:00:15]} 74. Kd6 {[%emt 0:00:05]} Ra5 $1 {[%emt 0:00:06]} 75. Bc6 {[%emt 0:00:57]} Kf6 {[%emt 0:00:16] Weighted Error Value: White=0.10 (very precise) /Black=0.11 (very precise)} 1/2-1/2

[Event "Prague Festival-Challengers 2022"]
[Site "Prague"]
[Date "2022.06.10"]
[Round "3.4"]
[White "Sasikiran, Krishnan"]
[Black "Hracek, Zbynek"]
[Result "1-0"]
[ECO "B30"]
[WhiteElo "2651"]
[BlackElo "2570"]
[Annotator "TA"]
[PlyCount "91"]
[EventDate "2022.06.07"]
[EventType "tourn"]
[EventCountry "CZE"]
[SourceTitle "playchess.com"]
[Source "ChessBase"]
[SourceQuality "1"]
[TimeControl "40/5400+30:1800+30"]

{[%evp 12,91,-9,-5,0,11,31,0,48,34,31,31,42,20,35,44,72,66,87,85,95,81,82,99,133,114,162,115,103,102,133,106,105,102,103,104,183,180,223,108,127,98,107,100,104,83,160,146,165,143,129,138,138,147,143,134,200,207,180,141,154,154,153,186,157,0,0,-6,-6,-41,-106,-85,491,449,12838,12839,12835,12835,12841,12842,12841,12841]} 1. e4 {[%emt 0:00:03]} c5 {[%emt 0:00:06]} 2. Nf3 {[%emt 0:00:10]} Nc6 {[%emt 0:00:05]} 3. Bb5 {[%emt 0:00:17]} e6 {[%emt 0:00:15]} 4. Bxc6 {[%emt 0:05:31]} bxc6 {[%emt 0:00:07]} 5. d3 {[%emt 0:00:21]} Ne7 {[%emt 0:00:26]} 6. O-O {[%emt 0:10:08]} Ng6 {[%emt 0:07:13]} 7. Ng5 {[%emt 0:06:35]} Be7 {[%emt 0:17:17] B30: Sicilian: 2...Nc6 3 Bb5, lines without ...g6.} 8. Qh5 {[%emt 0:09:19]} e5 {[%emt 0:08:27]} (8... c4 $5) 9. f4 {[%emt 0:09:37]} Bxg5 {[%emt 0:04:30]} (9... exf4 $11 {is more appropriate.} 10. Bxf4 Qb6) 10. fxg5 $40 {[%emt 0:02:33][%mdl 128] White is up to no good.} d5 {[%emt 0:08:23]} 11. Nc3 {[%emt 0:05:21]} O-O {[%emt 0:03:07] [#]} 12. Qf3 $146 {[%emt 0:07:18][%cal Re4d5]} ({Predecessor:} 12. Kh1 Be6 13. Bd2 c4 14. dxc4 d4 15. Na4 Bxc4 16. Rf2 f6 17. b3 fxg5 18. Rxf8+ Qxf8 19. bxc4 {0-1 (35) Derveloy,S (1400)-Dudulec,K (1835) FICGS email 2007}) 12... Be6 {[%emt 0:07:49]} 13. Qg3 {[%emt 0:05:48]} Rb8 {[%emt 0:15:01]} 14. b3 {[%emt 0:07:34]} Qa5 {[%emt 0:05:17]} 15. Na4 {[%emt 0:07:09]} c4 {[%emt 0:02:43]} 16. dxc4 {[%emt 0:01:18]} dxc4 {[%emt 0:00:38]} 17. Be3 {[%emt 0:02:07]} Rfd8 {[%emt 0:01:17]} 18. h4 {[%emt 0:02:03]} Nf4 {[%emt 0:01:59]} (18... Qc7 $16 {keeps fighting.}) 19. Bxf4 {[%emt 0:01:01]} ({White should try} 19. Qf3 $18) 19... exf4 $16 {[%emt 0:00:01]} 20. Qxf4 {[%emt 0:00:05]} Qd2 {[%emt 0:00:42]} 21. Qxd2 {[%emt 0:03:46]} Rxd2 {[%emt 0:00:02]} 22. Rf2 {[%emt 0:00:07]} Rbd8 {[%emt 0:00:20]} 23. Raf1 {[%emt 0:00:48]} Kf8 {[%emt 0:04:25]} (23... Rxf2 $16 {was called for.} 24. Rxf2 Rd1+ 25. Kh2 Ra1) 24. Nc5 $18 {[%emt 0:01:53]} Ke7 {[%emt 0:02:31]} 25. Kh2 {[%emt 0:03:07]} (25. Nxe6 $18 {and the rest is easy.} Rxf2 26. Nxd8 (26. Kxf2 fxe6 27. Ke3 c3 $16) (26. Rxf2 Kxe6 27. h5 Rd1+ 28. Kh2 Ra1 $11) 26... Rxf1+ 27. Kxf1 Kxd8 28. bxc4) 25... a5 {[%emt 0:03:55]} 26. Kg3 {[%emt 0:01:27]} Rxf2 {[%emt 0:01:00]} 27. Rxf2 $16 {[%emt 0:00:06][%mdl 4096] Endgame KRB-KRN} (27. Kxf2 $6 Rd2+ 28. Ke3 Rxc2 $11) 27... Rd1 {[%emt 0:00:03]} 28. Nb7 {[%emt 0:02:50]} a4 {[%emt 0:02:30]} (28... cxb3 $142 29. cxb3 (29. axb3 Ra1 $16) 29... a4) 29. bxa4 {[%emt 0:00:14]} Ra1 {[%emt 0:00:46]} 30. e5 {[%emt 0:01:01]} Rxa2 {[%emt 0:00:28]} 31. Nc5 {[%emt 0:00:06]} Ra1 {[%emt 0:03:11]} 32. Kf4 {[%emt 0:01:52]} Bd5 {[%emt 0:00:57]} 33. Ke3 {[%emt 0:00:57]} Kd8 {[%emt 0:00:54]} (33... Re1+ $16 34. Re2 Rd1) 34. e6 $1 $18 {[%emt 0:01:00]} fxe6 {[%emt 0:00:27]} 35. Rf7 {[%emt 0:00:14]} e5 {[%emt 0:00:13]} 36. Rxg7 {[%emt 0:00:14]} Ra3+ {[%emt 0:00:04]} 37. Ke2 {[%emt 0:01:36] White is more active.} Rg3 {[%emt 0:00:09] [#]} 38. h5 $2 {[%emt 0:02:01]} (38. Rxh7 $6 Rxg2+ 39. Kf1 Rxc2 $11) (38. c3 $1 $16 Rxg2+ 39. Kf1) 38... Rxg2+ $11 {[%emt 0:00:27]} 39. Kf1 {[%emt 0:00:59]} Rxc2 {[%emt 0:00:20] White must now prevent ...c3.} 40. h6 {[%emt 0:00:00] Ke1 is the strong threat.} ({But not} 40. Rxh7 c3 41. Nb7+ Ke8 42. Nd6+ Kd8 43. Nb7+ (43. Nf7+ $2 Ke7 $19) 43... Ke8 44. Nd6+ Kd8 45. Nb7+ $17 (45. Nf7+ $2 Ke7 $19)) 40... c3 {[%emt 0:00:00]} 41. g6 {[%emt 0:09:44] [#]} ({Avoid the trap} 41. Rxh7 $2 Rh2 42. Rd7+ Ke8 43. Rxd5 cxd5 $19) 41... Rc1+ $2 {[%emt 0:19:30][%mdl 8192] Loses the game.} (41... hxg6 $1 $17 42. h7 Rh2 43. Rg8+ Kc7) 42. Kf2 $18 {[%emt 0:06:25] White is clearly winning.} Bc4 {[%emt 0:07:46]} (42... hxg6 $142 43. h7 Rh1 44. Rg8+ Kc7) 43. Nb7+ {[%emt 0:08:29]} Kc8 {[%emt 0:00:07]} 44. Nd6+ {[%emt 0:00:42]} Kb8 {[%emt 0:01:34]} 45. Nxc4 {[%emt 0:00:17]} Rf1+ {[%emt 0:00:10]} 46. Ke2 {[%emt 0:00:24] Weighted Error Value: White=0.15 (very precise) /Black=0.31} 1-0

[Event "Prague Festival-Challengers 2022"]
[Site "Prague"]
[Date "2022.06.10"]
[Round "3.5"]
[White "Niemann, Hans Moke"]
[Black "Warmerdam, Max"]
[Result "1-0"]
[ECO "D32"]
[WhiteElo "2656"]
[BlackElo "2614"]
[Annotator "TA"]
[PlyCount "95"]
[EventDate "2022.06.07"]
[EventType "tourn"]
[EventCountry "CZE"]
[SourceTitle "playchess.com"]
[Source "ChessBase"]
[SourceQuality "1"]
[TimeControl "40/5400+30:1800+30"]

{[%evp 12,95,50,45,58,50,71,71,50,54,45,67,74,32,33,42,39,39,41,40,31,34,45,37,35,31,31,35,28,28,28,33,28,7,8,8,5,6,9,0,13,0,0,0,0,0,0,0,0,0,0,0,0,0,12,0,146,139,171,157,130,52,80,80,87,87,490,423,460,483,588,577,1081,672,1043,919,1354,1334,976,542,29974,29975,29977,29978,29990,29991]} 1. d4 {[%emt 0:01:55]} d5 {[%emt 0:00:06]} 2. c4 {[%emt 0:01:12]} e6 {[%emt 0:00:05]} 3. Nc3 {[%emt 0:01:02]} c5 {[%emt 0:00:27]} 4. cxd5 {[%emt 0:00:43]} cxd4 {[%emt 0:00:05]} 5. Qa4+ {[%emt 0:00:38]} Bd7 {[%emt 0:00:12]} 6. Qxd4 {[%emt 0:00:11]} exd5 {[%emt 0:00:04]} 7. Qxd5 {[%emt 0:00:10]} Nf6 {[%emt 0:00:04] D32: Tarrasch Defence: Sidelines and lines without g3.} 8. Qd1 {[%emt 0:00:19]} Bc5 {[%emt 0:00:04] is currently scoring better than 8...Nc6.} 9. Nf3 {[%emt 0:01:55]} O-O {[%emt 0:00:06] White is better.} 10. a3 {[%emt 0:08:33]} Nc6 {[%emt 0:03:53]} 11. Bg5 {[%emt 0:01:49]} h6 {[%emt 0:03:39]} 12. Bxf6 {[%emt 0:01:51]} Qxf6 {[%emt 0:00:08]} (12... gxf6 13. e3 $16) 13. Qxd7 {[%emt 0:03:11] Black must now prevent e3.} Rfd8 $1 {[%emt 0:00:34]} 14. Qg4 {[%emt 0:14:33]} Ne5 {[%emt 0:00:04]} 15. Qg3 $1 {[%emt 0:06:51]} Qb6 $1 {[%emt 0:00:43]} 16. Rb1 {[%emt 0:03:08][%cal Ba1b1,Bb1b2,Bb2b6][%mdl 32]} (16. b4 Nxf3+ 17. Qxf3 (17. gxf3 $2 Bxb4 18. axb4 Qd4 $19) 17... Bd4 $11) 16... Rac8 $1 {[%emt 0:00:05][%cal Oc5a3]} 17. e3 {[%emt 0:12:14]} Bxa3 {[%emt 0:00:34]} 18. Bb5 {[%emt 0:18:58]} Bxb2 {[%emt 0:03:49] [#]} 19. O-O $1 {[%emt 0:03:34]} Nxf3+ {[%emt 0:00:06]} 20. Qxf3 {[%emt 0:00:08]} Rxc3 {[%emt 0:00:05]} ({Don't play} 20... Bxc3 21. Bd7 $1 {[%mdl 512]} Rxd7 22. Rxb6 axb6 23. g3 $16) 21. Rxb2 {[%emt 0:00:06] aiming for Rbb1.} a6 {[%emt 0:00:06] [#]} 22. Qxf7+ $146 {[%emt 0:00:12]} ({Predecessor:} 22. Qe2 axb5 23. Qxb5 Qxb5 24. Rxb5 Rc7 25. g4 Rd2 26. Kg2 g6 27. h4 Re2 28. h5 g5 29. Rfb1 Rcc2 30. Rf5 Rc7 31. Kf3 {½-½ (31) Germanes,R (2343)-Anderson,P (2358) FICGS email 2013}) 22... Kxf7 {[%emt 0:00:04] [#]} 23. Bc4+ {[%emt 0:00:05]} Rxc4 {[%emt 0:00:04]} 24. Rxb6 $11 {[%emt 0:00:04][%mdl 4096] Endgame KRR-KRR} Rd7 {[%emt 0:00:30]} 25. Rfb1 {[%emt 0:00:30]} Rcc7 {[%emt 0:00:30]} 26. g4 {[%emt 0:00:30]} Ke8 {[%emt 0:00:30]} 27. Kg2 {[%emt 0:00:30]} Kd8 {[%emt 0:00:30]} 28. h4 {[%emt 0:00:30]} Kc8 {[%emt 0:00:30]} 29. R1b3 {[%emt 0:00:30]} Rc4 {[%emt 0:00:30]} 30. f4 {[%emt 0:19:38]} a5 {[%emt 0:33:29][%cal Ba6a5,Ba5a4][%mdl 32]} 31. R6b5 {[%emt 0:00:00]} a4 {[%emt 0:01:01]} 32. Ra3 {[%emt 0:00:00]} Rd6 {[%emt 0:53:53]} 33. Kf3 {[%emt 0:00:00]} Kc7 {[%emt 0:00:00]} (33... b6 $11 {keeps the balance.}) 34. Ra5 $16 {[%emt 0:00:00]} Ra6 {[%emt 0:00:00]} 35. Rxa6 {[%emt 0:00:00]} bxa6 $18 {[%emt 0:00:00] KR-KR} 36. Rd3 {[%emt 0:00:00]} (36. e4 $1 $16) 36... Kb6 {[%emt 0:00:00]} 37. e4 {[%emt 0:00:00][%cal Be3e4,Be4e5,Be5e6,Be6e7][%mdl 32] And now e5 would win.} Rc1 {[%emt 0:00:00]} 38. e5 $1 {[%emt 0:00:00]} Ra1 $2 {[%emt 0:00:00][%mdl 8192] A mistake that costs the game.} (38... Re1 $16) 39. Re3 {[%emt 0:00:00] Strongly threatening e6.} a3 {[%emt 0:00:00] Threatens to win with ...a2.} 40. Ke4 {[%emt 0:00:00]} a2 {[%emt 0:00:00] [#]} 41. Re2 $1 {[%emt 0:00:00]} g6 {[%emt 0:12:17]} 42. e6 {[%emt 0:12:01]} Kc7 {[%emt 0:00:51] [#]} 43. Ke5 {[%emt 0:00:05] Hoping for f5.} Kd8 {[%emt 0:01:06]} 44. f5 {[%emt 0:05:11] Kf6 is the strong threat.} gxf5 {[%emt 0:01:26]} 45. gxf5 {[%emt 0:00:05][%cal Bg4f5,Bf5f6][%mdl 32] White wants to mate with Kf6.} Ke7 {[%emt 0:00:55]} 46. f6+ {[%emt 0:00:05] White mates.} Kf8 {[%emt 0:06:32]} 47. e7+ {[%emt 0:03:06]} Kf7 {[%emt 0:00:05]} 48. Kd6 {[%emt 0:00:42] Weighted Error Value: White=0.04 (flawless) /Black=0.43} 1-0